Workbook

Sheet Sheet1
Z1: 26 | AA1: t[sek] | AB1: h [m] | AC1: v[m/s] | AD1: a[m/s^2] | AE1: Surface-0,115 | AF1: Float | AG1: FilmTh [my]
AA2: 0 | AB2: 0 | AC2: -9.999999975e-07 | AD2: 0.3162740469 | AE2: 0.3350000083 | AF2: 0.3386000097 | AG2: 0
A3: Input Data | D3: Case 1 | E3: Case 2 | G3: Case 3 | H3: Case 4 | AA3: 0.009999999776 | AB3: 1.580337994e-05 | AC3: 0.003161611967 | AD3: 0.3162354827 | AE3: 0.3350000083 | AF3: 0.3386000097 | AG3: 0
AA4: 0.01999999955 | AB4: 6.32296651e-05 | AC4: 0.006323452108 | AD4: 0.3161197305 | AE4: 0.3350000083 | AF4: 0.3386000097 | AG4: 0
W5: 1,78sec | AA5: 0.02999999933 | AB5: 0.0001422672794 | AC5: 0.009483749047 | AD5: 0.3159269094 | AE5: 0.3350000083 | AF5: 0.3386000097 | AG5: 0
A6: Start Hight | B6: sx_start | C6: mm | D6: 500 | E6: 600 | G6: 0 | H6: 0 | W6: 1.78 | X6: 0 | AA6: 0.03999999911 | AB6: 0.000252896949 | AC6: 0.01264173444 | AD6: 0.3156572282 | AE6: 0.3350000083 | AF6: 0.3386000097 | AG6: 0
W7: 1.78 | X7: 0.6 | AA7: 0.04999999702 | AB7: 0.0003950916871 | AC7: 0.01579663903 | AD7: 0.3153109252 | AE7: 0.3350000083 | AF7: 0.3386000097 | AG7: 0
A8: Pri_Min | D8: -10 | E8: -10 | G8: -10 | H8: 0 | AA8: 0.05999999493 | AB8: 0.000568816904 | AC8: 0.01894769818 | AD8: 0.3148883581 | AE8: 0.3350000083 | AF8: 0.3386000097 | AG8: 0
A9: Pri_Max | D9: 5 | E9: 5 | G9: 5 | H9: 0.4 | AA9: 0.06999999285 | AB9: 0.0007740302826 | AC9: 0.02209415287 | AD9: 0.3143899441 | AE9: 0.3350000083 | AF9: 0.3386000097 | AG9: 0
A10: Pri_MaUi | D10: 2.5 | E10: 2.5 | G10: 2.5 | H10: 0.1 | AA10: 0.07999999076 | AB10: 0.001010682085 | AC10: 0.025235245 | AD10: 0.3138161302 | AE10: 0.3350000083 | AF10: 0.3386000097 | AG10: 0
A11: Sec_Min | D11: 0 | E11: 0 | G11: 0 | H11: 0 | AA11: 0.08999998868 | AB11: 0.001278714859 | AC11: 0.0283702258 | AD11: 0.3131675124 | AE11: 0.3350000083 | AF11: 0.3386000097 | AG11: 0
A12: Sec_Max | D12: 0.6 | E12: 0.6 | G12: 0.6 | H12: 0.4 | AA12: 0.09999998659 | AB12: 0.001578063704 | AC12: 0.0314983502 | AD12: 0.3124446869 | AE12: 0.3350000083 | AF12: 0.3386000097 | AG12: 0
A13: Sec_MaUi | D13: 0.1 | E13: 0.1 | G13: 0.1 | H13: 0.1 | AA13: 0.1099999845 | AB13: 0.001908656443 | AC13: 0.03461887315 | AD13: 0.3116483688 | AE13: 0.3350000083 | AF13: 0.3386000097 | AG13: 0
A14: X_Min | D14: -0.06 | G14: -1.44 | AA14: 0.1199999824 | AB14: 0.00227041333 | AC14: 0.0377310738 | AD14: 0.3107792735 | AE14: 0.3350000083 | AF14: 0.3386000097 | AG14: 0
AA15: 0.1299999803 | AB15: 0.002663247753 | AC15: 0.04083422199 | AD15: 0.309838295 | AE15: 0.3350000083 | AF15: 0.3386000097 | AG15: 0
A16: NoOf_Iterations | C16: # | D16: 1000 | E16: 1000 | G16: 1000 | H16: 179 | AA16: 0.1399999857 | AB16: 0.003087065183 | AC16: 0.04392760247 | AD16: 0.3088262975 | AE16: 0.3350000083 | AF16: 0.3386000097 | AG16: 0
A17: IterationsStep | C17: sec | D17: 0.01 | E17: 0.01 | G17: 0.01 | H17: 0.01 | AA17: 0.1499999911 | AB17: 0.003541764803 | AC17: 0.04701051116 | AD17: 0.307744205 | AE17: 0.3350000083 | AF17: 0.3386000097 | AG17: 0
A18: DissipationFactor | C18: # | D18: 0 | E18: 4.66 | G18: 0.05 | H18: 1 | AA18: 0.1599999964 | AB18: 0.004027238116 | AC18: 0.05008225515 | AD18: 0.3065930903 | AE18: 0.3350000083 | AF18: 0.3386000097 | AG18: 0
A19: DissipationHeight | C19: mm | D19: 115 | E19: 115 | G19: 0 | H19: 0 | AA19: 0.1700000018 | AB19: 0.004543370567 | AC19: 0.053142149 | AD19: 0.3053739965 | AE19: 0.3350000083 | AF19: 0.3386000097 | AG19: 0
AA20: 0.1800000072 | AB20: 0.005090039689 | AC20: 0.0561895147 | AD20: 0.3040880263 | AE20: 0.3350000083 | AF20: 0.3386000097 | AG20: 0
AA21: 0.1900000125 | AB21: 0.005667116493 | AC21: 0.05922368914 | AD21: 0.3027364314 | AE21: 0.3350000083 | AF21: 0.3386000097 | AG21: 0
AA22: 0.2000000179 | AB22: 0.006274466868 | AC22: 0.06224402785 | AD22: 0.3013204336 | AE22: 0.3350000083 | AF22: 0.3386000097 | AG22: 0
AA23: 0.2100000232 | AB23: 0.006911948789 | AC23: 0.06524989009 | AD23: 0.2998412848 | AE23: 0.3350000083 | AF23: 0.3386000097 | AG23: 0
A24: Output Data | AA24: 0.2200000286 | AB24: 0.00757941464 | AC24: 0.06824065 | AD24: 0.2983003557 | AE24: 0.3350000083 | AF24: 0.3386000097 | AG24: 0
AA25: 0.230000034 | AB25: 0.008276709355 | AC25: 0.07121569663 | AD25: 0.2966990173 | AE25: 0.3350000083 | AF25: 0.3386000097 | AG25: 0
A26: Time | C26: ms | D26: 9.990133286 | E26: 9.990133286 | G26: 9.990133286 | H26: 1.77999866 | AA26: 0.2400000393 | AB26: 0.00900367368 | AC26: 0.0741744265 | AD26: 0.2950387001 | AE26: 0.3350000083 | AF26: 0.3386000097 | AG26: 0
A27: v_max | C27: m/s | D27: -1.135857463 | E27: -1.664907455 | G27: 0.2752630115 | H27: 0.2752630115 | AA27: 0.2500000298 | AB27: 0.009760141373 | AC27: 0.07711627334 | AD27: 0.2933208644 | AE27: 0.3350000083 | AF27: 0.3386000097 | AG27: 0
A28: v_after (plask) | C28: m/s | D28: -1.135857463 | E28: -1.021623379 | G28: 0.2752630115 | H28: 0.2752630115 | AA28: 0.2600000203 | AB28: 0.01054594107 | AC28: 0.08004066348 | AD28: 0.2915470004 | AE28: 0.3350000083 | AF28: 0.3386000097 | AG28: 0
A29: Energy_max | C29: J | D29: 0.09031204409 | E29: 0.1940341739 | G29: 0.005303880347 | H29: 0.005303880347 | AA29: 0.2700000107 | AB29: 0.01136089489 | AC29: 0.08294703066 | AD29: 0.2897186577 | AE29: 0.3350000083 | AF29: 0.3386000097 | AG29: 0
A30: Energy_After (plask) | C30: J | D30: 0.09031205232 | E30: 0.07306000296 | G30: 0.005303880783 | H30: 0.005303880783 | AA30: 0.2800000012 | AB30: 0.01220482029 | AC30: 0.08583485335 | AD30: 0.2878373861 | AE30: 0.3350000083 | AF30: 0.3386000097 | AG30: 0
A31: Energy_Loss (plask) | C31: J | D31: -8.227633352e-09 | E31: 0.1209741709 | G31: -4.367407954e-10 | H31: -4.367407954e-10 | AA31: 0.2899999917 | AB31: 0.01307752822 | AC31: 0.08870361 | AD31: 0.2859048247 | AE31: 0.3350000083 | AF31: 0.3386000097 | AG31: 0
AA32: 0.2999999821 | AB32: 0.01397882681 | AC32: 0.09155278653 | AD32: 0.2839225531 | AE32: 0.3350000083 | AF32: 0.3386000097 | AG32: 0
AA33: 0.3099999726 | AB33: 0.01490851678 | AC33: 0.09438189864 | AD33: 0.28189224 | AE33: 0.3350000083 | AF33: 0.3386000097 | AG33: 0
AA34: 0.319999963 | AB34: 0.01586639695 | AC34: 0.09719047695 | AD34: 0.2798155546 | AE34: 0.3350000083 | AF34: 0.3386000097 | AG34: 0
AA35: 0.3299999535 | AB35: 0.01685225591 | AC35: 0.09997805953 | AD35: 0.2776941955 | AE35: 0.3350000083 | AF35: 0.3386000097 | AG35: 0
AA36: 0.339999944 | AB36: 0.01786588691 | AC36: 0.1027442142 | AD36: 0.2755298316 | AE36: 0.3350000083 | AF36: 0.3386000097 | AG36: 0
AA37: 0.3499999344 | AB37: 0.0189070683 | AC37: 0.1054885238 | AD37: 0.2733241916 | AE37: 0.3350000083 | AF37: 0.3386000097 | AG37: 0
AA38: 0.3599999249 | AB38: 0.01997558214 | AC38: 0.1082105711 | AD38: 0.2710790336 | AE38: 0.3350000083 | AF38: 0.3386000097 | AG38: 0
AA39: 0.3699999154 | AB39: 0.02107120492 | AC39: 0.1109099761 | AD39: 0.2687960565 | AE39: 0.3350000083 | AF39: 0.3386000097 | AG39: 0
AA40: 0.3799999058 | AB40: 0.02219370566 | AC40: 0.1135863736 | AD40: 0.2664769888 | AE40: 0.3350000083 | AF40: 0.3386000097 | AG40: 0
AA41: 0.3899998963 | AB41: 0.02334285341 | AC41: 0.1162393987 | AD41: 0.2641236186 | AE41: 0.3350000083 | AF41: 0.3386000097 | AG41: 0
AA42: 0.3999998868 | AB42: 0.02451841347 | AC42: 0.118868731 | AD42: 0.2617376447 | AE42: 0.3350000083 | AF42: 0.3386000097 | AG42: 0
AA43: 0.4099998772 | AB43: 0.02572014742 | AC43: 0.12147405 | AD43: 0.2593208253 | AE43: 0.3350000083 | AF43: 0.3386000097 | AG43: 0
AA44: 0.4199998677 | AB44: 0.02694781497 | AC44: 0.1240550503 | AD44: 0.2568749189 | AE44: 0.3350000083 | AF44: 0.3386000097 | AG44: 0
AA45: 0.4299998581 | AB45: 0.02820116654 | AC45: 0.1266114563 | AD45: 0.2544015944 | AE45: 0.3350000083 | AF45: 0.3386000097 | AG45: 0
AA46: 0.4399998486 | AB46: 0.02947995998 | AC46: 0.1291429996 | AD46: 0.2519026399 | AE46: 0.3350000083 | AF46: 0.3386000097 | AG46: 0
AA47: 0.4499998391 | AB47: 0.03078394383 | AC47: 0.1316494346 | AD47: 0.2493797392 | AE47: 0.3350000083 | AF47: 0.3386000097 | AG47: 0
AA48: 0.4599998295 | AB48: 0.03211286291 | AC48: 0.1341305226 | AD48: 0.2468345761 | AE48: 0.3350000083 | AF48: 0.3386000097 | AG48: 0
AA49: 0.46999982 | AB49: 0.0334664695 | AC49: 0.1365860552 | AD49: 0.2442688346 | AE49: 0.3350000083 | AF49: 0.3386000097 | AG49: 0
AA50: 0.4799998105 | AB50: 0.03484449908 | AC50: 0.1390158385 | AD50: 0.2416841984 | AE50: 0.3350000083 | AF50: 0.3386000097 | AG50: 0
AA51: 0.4899998009 | AB51: 0.03624669835 | AC51: 0.1414196789 | AD51: 0.2390822917 | AE51: 0.3350000083 | AF51: 0.3386000097 | AG51: 0
AA52: 0.4999997914 | AB52: 0.03767280653 | AC52: 0.1437974274 | AD52: 0.2364647537 | AE52: 0.3350000083 | AF52: 0.3386000097 | AG52: 0
AA53: 0.5099998116 | AB53: 0.03912255913 | AC53: 0.146148935 | AD53: 0.2338331938 | AE53: 0.3350000083 | AF53: 0.3386000097 | AG53: 0
AA54: 0.5199998021 | AB54: 0.04059569538 | AC54: 0.1484740525 | AD54: 0.2311891764 | AE54: 0.3350000083 | AF54: 0.3386000097 | AG54: 0
AA55: 0.5299997926 | AB55: 0.04209195077 | AC55: 0.1507726759 | AD55: 0.2285342664 | AE55: 0.3350000083 | AF55: 0.3386000097 | AG55: 0
AA56: 0.539999783 | AB56: 0.04361106083 | AC56: 0.1530447006 | AD56: 0.2258699983 | AE56: 0.3350000083 | AF56: 0.3386000097 | AG56: 0
AA57: 0.5499997735 | AB57: 0.04515275732 | AC57: 0.1552900523 | AD57: 0.2231978774 | AE57: 0.3350000083 | AF57: 0.3386000097 | AG57: 0
AA58: 0.559999764 | AB58: 0.04671677202 | AC58: 0.1575086415 | AD58: 0.2205193639 | AE58: 0.3350000083 | AF58: 0.3386000097 | AG58: 0
AA59: 0.5699997544 | AB59: 0.04830284044 | AC59: 0.1597004235 | AD59: 0.2178359181 | AE59: 0.3350000083 | AF59: 0.3386000097 | AG59: 0
AA60: 0.5799997449 | AB60: 0.04991069064 | AC60: 0.1618653536 | AD60: 0.2151489407 | AE60: 0.3350000083 | AF60: 0.3386000097 | AG60: 0
AA61: 0.5899997354 | AB61: 0.05154005811 | AC61: 0.1640033871 | AD61: 0.2124598175 | AE61: 0.3350000083 | AF61: 0.3386000097 | AG61: 0
AA62: 0.5999997258 | AB62: 0.05319067091 | AC62: 0.1661145389 | AD62: 0.2097698897 | AE62: 0.3350000083 | AF62: 0.3386000097 | AG62: 0
AA63: 0.6099997163 | AB63: 0.05486226082 | AC63: 0.1681987941 | AD63: 0.2070804983 | AE63: 0.3350000083 | AF63: 0.3386000097 | AG63: 0
AA64: 0.6199997067 | AB64: 0.05655455589 | AC64: 0.1702561527 | AD64: 0.20439291 | AE64: 0.3350000083 | AF64: 0.3386000097 | AG64: 0
AA65: 0.6299996972 | AB65: 0.05826729164 | AC65: 0.1722866595 | AD65: 0.2017083615 | AE65: 0.3350000083 | AF65: 0.3386000097 | AG65: 0
AA66: 0.6399996877 | AB66: 0.06000019982 | AC66: 0.1742903441 | AD66: 0.1990280896 | AE66: 0.3350000083 | AF66: 0.3386000097 | AG66: 0
AA67: 0.6499996781 | AB67: 0.06175300851 | AC67: 0.1762672365 | AD67: 0.1963532716 | AE67: 0.3350000083 | AF67: 0.3386000097 | AG67: 0
AA68: 0.6599996686 | AB68: 0.06352545321 | AC68: 0.1782174259 | AD68: 0.193685025 | AE68: 0.3350000083 | AF68: 0.3386000097 | AG68: 0
AA69: 0.6699996591 | AB69: 0.06531727314 | AC69: 0.1801409721 | AD69: 0.1910244823 | AE69: 0.3350000083 | AF69: 0.3386000097 | AG69: 0
AA70: 0.6799996495 | AB70: 0.06712818891 | AC70: 0.1820379496 | AD70: 0.1883727014 | AE70: 0.3350000083 | AF70: 0.3386000097 | AG70: 0
AA71: 0.68999964 | AB71: 0.06895793974 | AC71: 0.1839084476 | AD71: 0.1857307404 | AE71: 0.3350000083 | AF71: 0.3386000097 | AG71: 0
AA72: 0.6999996305 | AB72: 0.07080626488 | AC72: 0.1857526004 | AD72: 0.1830995679 | AE72: 0.3350000083 | AF72: 0.3386000097 | AG72: 0
AA73: 0.7099996209 | AB73: 0.07267290354 | AC73: 0.1875704825 | AD73: 0.1804801524 | AE73: 0.3350000083 | AF73: 0.3386000097 | AG73: 0
AA74: 0.7199996114 | AB74: 0.0745575875 | AC74: 0.1893622428 | AD74: 0.1778734326 | AE74: 0.3350000083 | AF74: 0.3386000097 | AG74: 0
AA75: 0.7299996018 | AB75: 0.07646006346 | AC75: 0.1911280006 | AD75: 0.1752803028 | AE75: 0.3350000083 | AF75: 0.3386000097 | AG75: 0
AA76: 0.7399995923 | AB76: 0.07838006318 | AC76: 0.19286789 | AD76: 0.1727015972 | AE76: 0.3350000083 | AF76: 0.3386000097 | AG76: 0
AA77: 0.7499995828 | AB77: 0.08031733334 | AC77: 0.1945820749 | AD77: 0.1701381356 | AE77: 0.3350000083 | AF77: 0.3386000097 | AG77: 0
AA78: 0.7599995732 | AB78: 0.08227162063 | AC78: 0.1962707043 | AD78: 0.1675907373 | AE78: 0.3350000083 | AF78: 0.3386000097 | AG78: 0
AA79: 0.7699995637 | AB79: 0.08424266428 | AC79: 0.1979339421 | AD79: 0.1650601029 | AE79: 0.3350000083 | AF79: 0.3386000097 | AG79: 0
AA80: 0.7799995542 | AB80: 0.08623021096 | AC80: 0.1995719671 | AD80: 0.1625469774 | AE80: 0.3350000083 | AF80: 0.3386000097 | AG80: 0
AA81: 0.7899995446 | AB81: 0.08823402226 | AC81: 0.2011849433 | AD81: 0.1600520313 | AE81: 0.3350000083 | AF81: 0.3386000097 | AG81: 0
AA82: 0.7999995351 | AB82: 0.09025382996 | AC82: 0.2027730793 | AD82: 0.1575759053 | AE82: 0.3350000083 | AF82: 0.3386000097 | AG82: 0
AA83: 0.8099995255 | AB83: 0.09228939563 | AC83: 0.2043365389 | AD83: 0.1551192254 | AE83: 0.3350000083 | AF83: 0.3386000097 | AG83: 0
AA84: 0.819999516 | AB84: 0.09434048086 | AC84: 0.2058755308 | AD84: 0.1526825577 | AE84: 0.3350000083 | AF84: 0.3386000097 | AG84: 0
AA85: 0.8299995065 | AB85: 0.09640682489 | AC85: 0.2073902488 | AD85: 0.1502664536 | AE85: 0.3350000083 | AF85: 0.3386000097 | AG85: 0
AA86: 0.8399994969 | AB86: 0.09848820418 | AC86: 0.2088809311 | AD86: 0.1478714347 | AE86: 0.3350000083 | AF86: 0.3386000097 | AG86: 0
AA87: 0.8499994874 | AB87: 0.1005843654 | AC87: 0.2103477567 | AD87: 0.1454979777 | AE87: 0.3350000083 | AF87: 0.3386000097 | AG87: 0
AA88: 0.8599994779 | AB88: 0.1026950777 | AC88: 0.211790964 | AD88: 0.1431465298 | AE88: 0.3350000083 | AF88: 0.3386000097 | AG88: 0
AA89: 0.8699994683 | AB89: 0.1048201099 | AC89: 0.2132107615 | AD89: 0.1408175379 | AE89: 0.3350000083 | AF89: 0.3386000097 | AG89: 0
AA90: 0.8799994588 | AB90: 0.1069592163 | AC90: 0.2146073878 | AD90: 0.1385113746 | AE90: 0.3350000083 | AF90: 0.3386000097 | AG90: 0
AA91: 0.8899994493 | AB91: 0.1091121808 | AC91: 0.2159810662 | AD91: 0.1362284124 | AE91: 0.3350000083 | AF91: 0.3386000097 | AG91: 0
AA92: 0.8999994397 | AB92: 0.1112787649 | AC92: 0.2173320353 | AD92: 0.1339689791 | AE92: 0.3350000083 | AF92: 0.3386000097 | AG92: 0
AA93: 0.9099994302 | AB93: 0.1134587452 | AC93: 0.2186605185 | AD93: 0.1317334026 | AE93: 0.3350000083 | AF93: 0.3386000097 | AG93: 0
AA94: 0.9199994206 | AB94: 0.1156518981 | AC94: 0.2199667841 | AD94: 0.129521966 | AE94: 0.3350000083 | AF94: 0.3386000097 | AG94: 0
AA95: 0.9299994111 | AB95: 0.1178580076 | AC95: 0.2212510407 | AD95: 0.1273349226 | AE95: 0.3350000083 | AF95: 0.3386000097 | AG95: 0
AA96: 0.9399994016 | AB96: 0.1200768501 | AC96: 0.2225135565 | AD96: 0.1251724958 | AE96: 0.3350000083 | AF96: 0.3386000097 | AG96: 0
AA97: 0.949999392 | AB97: 0.1223082095 | AC97: 0.2237545699 | AD97: 0.1230349019 | AE97: 0.3350000083 | AF97: 0.3386000097 | AG97: 0
AA98: 0.9599993825 | AB98: 0.1245518699 | AC98: 0.2249743342 | AD98: 0.120922327 | AE98: 0.3350000083 | AF98: 0.3386000097 | AG98: 0
AA99: 0.969999373 | AB99: 0.1268076301 | AC99: 0.2261731029 | AD99: 0.1188349351 | AE99: 0.3350000083 | AF99: 0.3386000097 | AG99: 0
AA100: 0.9799993634 | AB100: 0.129075259 | AC100: 0.2273511291 | AD100: 0.1167728677 | AE100: 0.3350000083 | AF100: 0.3386000097 | AG100: 0
AA101: 0.9899993539 | AB101: 0.1313545704 | AC101: 0.2285086513 | AD101: 0.1147362366 | AE101: 0.3350000083 | AF101: 0.3386000097 | AG101: 0
AA102: 0.9999993443 | AB102: 0.1336453706 | AC102: 0.2296459377 | AD102: 0.1127251387 | AE102: 0.3350000083 | AF102: 0.3386000097 | AG102: 0
AA103: 1.009999394 | AB103: 0.1359474361 | AC103: 0.2307632416 | AD103: 0.1107396558 | AE103: 0.3350000083 | AF103: 0.3386000097 | AG103: 0
AA104: 1.019999385 | AB104: 0.1382605731 | AC104: 0.2318608165 | AD104: 0.1087798476 | AE104: 0.3350000083 | AF104: 0.3386000097 | AG104: 0
AA105: 1.029999375 | AB105: 0.1405845881 | AC105: 0.2329389155 | AD105: 0.106845744 | AE105: 0.3350000083 | AF105: 0.3386000097 | AG105: 0
AA106: 1.039999366 | AB106: 0.1429192871 | AC106: 0.2339978069 | AD106: 0.1049373746 | AE106: 0.3350000083 | AF106: 0.3386000097 | AG106: 0
AA107: 1.049999356 | AB107: 0.1452644765 | AC107: 0.2350377589 | AD107: 0.103054747 | AE107: 0.3350000083 | AF107: 0.3386000097 | AG107: 0
AA108: 1.059999347 | AB108: 0.1476199776 | AC108: 0.2360589951 | AD108: 0.1011978388 | AE108: 0.3350000083 | AF108: 0.3386000097 | AG108: 0
AA109: 1.069999337 | AB109: 0.1499855965 | AC109: 0.2370617986 | AD109: 0.09936663508 | AE109: 0.3350000083 | AF109: 0.3386000097 | AG109: 0
AA110: 1.079999328 | AB110: 0.1523611546 | AC110: 0.2380464077 | AD110: 0.09756107628 | AE110: 0.3350000083 | AF110: 0.3386000097 | AG110: 0
AA111: 1.089999318 | AB111: 0.1547464579 | AC111: 0.2390131056 | AD111: 0.09578111023 | AE111: 0.3350000083 | AF111: 0.3386000097 | AG111: 0
AA112: 1.099999309 | AB112: 0.1571413577 | AC112: 0.2399621159 | AD112: 0.09402666986 | AE112: 0.3350000083 | AF112: 0.3386000097 | AG112: 0
AA113: 1.109999299 | AB113: 0.1595456451 | AC113: 0.2408937216 | AD113: 0.09229766577 | AE113: 0.3350000083 | AF113: 0.3386000097 | AG113: 0
AA114: 1.11999929 | AB114: 0.1619591713 | AC114: 0.2418081611 | AD114: 0.09059400111 | AE114: 0.3350000083 | AF114: 0.3386000097 | AG114: 0
AA115: 1.12999928 | AB115: 0.1643817574 | AC115: 0.2427056879 | AD115: 0.08891556412 | AE115: 0.3350000083 | AF115: 0.3386000097 | AG115: 0
AA116: 1.13999927 | AB116: 0.1668132246 | AC116: 0.2435865551 | AD116: 0.08726223558 | AE116: 0.3350000083 | AF116: 0.3386000097 | AG116: 0
AA117: 1.149999261 | AB117: 0.1692534238 | AC117: 0.2444510162 | AD117: 0.08563388139 | AE117: 0.3350000083 | AF117: 0.3386000097 | AG117: 0
AA118: 1.159999251 | AB118: 0.1717021912 | AC118: 0.2452993095 | AD118: 0.08403035998 | AE118: 0.3350000083 | AF118: 0.3386000097 | AG118: 0
AA119: 1.169999242 | AB119: 0.1741593629 | AC119: 0.2461317033 | AD119: 0.08245150745 | AE119: 0.3350000083 | AF119: 0.3386000097 | AG119: 0
AA120: 1.179999232 | AB120: 0.1766247749 | AC120: 0.246948421 | AD120: 0.08089717478 | AE120: 0.3350000083 | AF120: 0.3386000097 | AG120: 0
AA121: 1.189999223 | AB121: 0.1790982783 | AC121: 0.2477497309 | AD121: 0.0793671906 | AE121: 0.3350000083 | AF121: 0.3386000097 | AG121: 0
AA122: 1.199999213 | AB122: 0.181579724 | AC122: 0.2485358417 | AD122: 0.07786136866 | AE122: 0.3350000083 | AF122: 0.3386000097 | AG122: 0
AA123: 1.209999204 | AB123: 0.184068948 | AC123: 0.2493070364 | AD123: 0.07637953013 | AE123: 0.3350000083 | AF123: 0.3386000097 | AG123: 0
AA124: 1.219999194 | AB124: 0.1865658164 | AC124: 0.2500635087 | AD124: 0.07492147386 | AE124: 0.3350000083 | AF124: 0.3386000097 | AG124: 0
AA125: 1.229999185 | AB125: 0.1890701652 | AC125: 0.250805527 | AD125: 0.07348699868 | AE125: 0.3350000083 | AF125: 0.3386000097 | AG125: 0
AA126: 1.239999175 | AB126: 0.1915818751 | AC126: 0.2515333295 | AD126: 0.07207589597 | AE126: 0.3350000083 | AF126: 0.3386000097 | AG126: 0
AA127: 1.249999166 | AB127: 0.1941007823 | AC127: 0.2522471249 | AD127: 0.07068796456 | AE127: 0.3350000083 | AF127: 0.3386000097 | AG127: 0
AA128: 1.259999156 | AB128: 0.1966267675 | AC128: 0.2529471815 | AD128: 0.06932297349 | AE128: 0.3350000083 | AF128: 0.3386000097 | AG128: 0
AA129: 1.269999146 | AB129: 0.1991596818 | AC129: 0.253633678 | AD129: 0.06798069924 | AE129: 0.3350000083 | AF129: 0.3386000097 | AG129: 0
AA130: 1.279999137 | AB130: 0.201699391 | AC130: 0.2543068528 | AD130: 0.0666609183 | AE130: 0.3350000083 | AF130: 0.3386000097 | AG130: 0
AA131: 1.289999127 | AB131: 0.2042457759 | AC131: 0.2549669743 | AD131: 0.06536339968 | AE131: 0.3350000083 | AF131: 0.3386000097 | AG131: 0
AA132: 1.299999118 | AB132: 0.2067986876 | AC132: 0.2556141913 | AD132: 0.06408789754 | AE132: 0.3350000083 | AF132: 0.3386000097 | AG132: 0
AA133: 1.309999108 | AB133: 0.2093580216 | AC133: 0.2562488019 | AD133: 0.06283418089 | AE133: 0.3350000083 | AF133: 0.3386000097 | AG133: 0
AA134: 1.319999099 | AB134: 0.211923629 | AC134: 0.2568709552 | AD134: 0.06160200387 | AE134: 0.3350000083 | AF134: 0.3386000097 | AG134: 0
AA135: 1.329999089 | AB135: 0.2144954056 | AC135: 0.2574809194 | AD135: 0.06039111316 | AE135: 0.3350000083 | AF135: 0.3386000097 | AG135: 0
AA136: 1.33999908 | AB136: 0.2170732021 | AC136: 0.2580788434 | AD136: 0.05920126662 | AE136: 0.3350000083 | AF136: 0.3386000097 | AG136: 0
AA137: 1.34999907 | AB137: 0.2196569294 | AC137: 0.2586649954 | AD137: 0.05803221092 | AE137: 0.3350000083 | AF137: 0.3386000097 | AG137: 0
AA138: 1.359999061 | AB138: 0.2222464681 | AC138: 0.2592395544 | AD138: 0.05688369274 | AE138: 0.3350000083 | AF138: 0.3386000097 | AG138: 0
AA139: 1.369999051 | AB139: 0.2248416841 | AC139: 0.2598027289 | AD139: 0.05575545505 | AE139: 0.3350000083 | AF139: 0.3386000097 | AG139: 0
AA140: 1.379999042 | AB140: 0.2274424881 | AC140: 0.2603547275 | AD140: 0.05464724079 | AE140: 0.3350000083 | AF140: 0.3386000097 | AG140: 0
AA141: 1.389999032 | AB141: 0.2300487459 | AC141: 0.2608957589 | AD141: 0.05355879664 | AE141: 0.3350000083 | AF141: 0.3386000097 | AG141: 0
AA142: 1.399999022 | AB142: 0.2326603681 | AC142: 0.261425972 | AD142: 0.05248986185 | AE142: 0.3350000083 | AF142: 0.3386000097 | AG142: 0
AA143: 1.409999013 | AB143: 0.2352772355 | AC143: 0.2619456053 | AD143: 0.05144017562 | AE143: 0.3350000083 | AF143: 0.3386000097 | AG143: 0
AA144: 1.419999003 | AB144: 0.2378992438 | AC144: 0.2624548376 | AD144: 0.05040948093 | AE144: 0.3350000083 | AF144: 0.3386000097 | AG144: 0
AA145: 1.429998994 | AB145: 0.2405262887 | AC145: 0.2629538774 | AD145: 0.049397517 | AE145: 0.3350000083 | AF145: 0.3386000097 | AG145: 0
AA146: 1.439998984 | AB146: 0.2431582808 | AC146: 0.2634428442 | AD146: 0.04840401933 | AE146: 0.3350000083 | AF146: 0.3386000097 | AG146: 0
AA147: 1.449998975 | AB147: 0.2457951158 | AC147: 0.2639220059 | AD147: 0.04742873088 | AE147: 0.3350000083 | AF147: 0.3386000097 | AG147: 0
AA148: 1.459998965 | AB148: 0.2484366894 | AC148: 0.2643914819 | AD148: 0.04647139087 | AE148: 0.3350000083 | AF148: 0.3386000097 | AG148: 0
AA149: 1.469998956 | AB149: 0.251082927 | AC149: 0.2648514807 | AD149: 0.045531746 | AE149: 0.3350000083 | AF149: 0.3386000097 | AG149: 0
AA150: 1.479998946 | AB150: 0.2537336946 | AC150: 0.2653021812 | AD150: 0.04460952803 | AE150: 0.3350000083 | AF150: 0.3386000097 | AG150: 0
AA151: 1.489998937 | AB151: 0.2563889325 | AC151: 0.2657437325 | AD151: 0.04370448366 | AE151: 0.3350000083 | AF151: 0.3386000097 | AG151: 0
AA152: 1.499998927 | AB152: 0.2590485513 | AC152: 0.266176343 | AD152: 0.04281635955 | AE152: 0.3350000083 | AF152: 0.3386000097 | AG152: 0
AA153: 1.509998918 | AB153: 0.2617124319 | AC153: 0.266600132 | AD153: 0.04194489494 | AE153: 0.3350000083 | AF153: 0.3386000097 | AG153: 0
AA154: 1.519998908 | AB154: 0.2643805146 | AC154: 0.2670152783 | AD154: 0.04108983651 | AE154: 0.3350000083 | AF154: 0.3386000097 | AG154: 0
AA155: 1.529998899 | AB155: 0.2670527101 | AC155: 0.2674219608 | AD155: 0.04025093466 | AE155: 0.3350000083 | AF155: 0.3386000097 | AG155: 0
AA156: 1.539998889 | AB156: 0.2697289288 | AC156: 0.2678203583 | AD156: 0.03942793235 | AE156: 0.3350000083 | AF156: 0.3386000097 | AG156: 0
AA157: 1.549998879 | AB157: 0.2724090815 | AC157: 0.2682105899 | AD157: 0.03862058371 | AE157: 0.3350000083 | AF157: 0.3386000097 | AG157: 0
AA158: 1.55999887 | AB158: 0.2750931084 | AC158: 0.2685928047 | AD158: 0.03782863915 | AE158: 0.3350000083 | AF158: 0.3386000097 | AG158: 0
AA159: 1.56999886 | AB159: 0.2777809203 | AC159: 0.2689672112 | AD159: 0.03705185279 | AE159: 0.3350000083 | AF159: 0.3386000097 | AG159: 0
AA160: 1.579998851 | AB160: 0.2804724276 | AC160: 0.269333899 | AD160: 0.03628997505 | AE160: 0.3350000083 | AF160: 0.3386000097 | AG160: 0
AA161: 1.589998841 | AB161: 0.2831675708 | AC161: 0.2696930468 | AD161: 0.03554277122 | AE161: 0.3350000083 | AF161: 0.3386000097 | AG161: 0
AA162: 1.599998832 | AB162: 0.2858662605 | AC162: 0.2700448036 | AD162: 0.03480999544 | AE162: 0.3350000083 | AF162: 0.3386000097 | AG162: 0
AA163: 1.609998822 | AB163: 0.2885684371 | AC163: 0.2703893185 | AD163: 0.03409141302 | AE163: 0.3350000083 | AF163: 0.3386000097 | AG163: 0
AA164: 1.619998813 | AB164: 0.2912740111 | AC164: 0.2707266808 | AD164: 0.03338678554 | AE164: 0.3350000083 | AF164: 0.3386000097 | AG164: 0
AA165: 1.629998803 | AB165: 0.2939829528 | AC165: 0.2710570991 | AD165: 0.0326958783 | AE165: 0.3350000083 | AF165: 0.3386000097 | AG165: 0
AA166: 1.639998794 | AB166: 0.296695143 | AC166: 0.2713806331 | AD166: 0.03201846033 | AE166: 0.3350000083 | AF166: 0.3386000097 | AG166: 0
AA167: 1.649998784 | AB167: 0.2994105518 | AC167: 0.2716974914 | AD167: 0.03135430068 | AE167: 0.3350000083 | AF167: 0.3386000097 | AG167: 0
AA168: 1.659998775 | AB168: 0.30212906 | AC168: 0.2720077634 | AD168: 0.03070317768 | AE168: 0.3350000083 | AF168: 0.3386000097 | AG168: 0
AA169: 1.669998765 | AB169: 0.3048506677 | AC169: 0.2723115981 | AD169: 0.03006486222 | AE169: 0.3350000083 | AF169: 0.3386000097 | AG169: 0
AA170: 1.679998755 | AB170: 0.3075752854 | AC170: 0.2726091146 | AD170: 0.02943913452 | AE170: 0.3350000083 | AF170: 0.3386000097 | AG170: 0
AA171: 1.689998746 | AB171: 0.3103028238 | AC171: 0.2729004323 | AD171: 0.02882577293 | AE171: 0.3350000083 | AF171: 0.3386000097 | AG171: 0
AA172: 1.699998736 | AB172: 0.3130332828 | AC172: 0.2731856704 | AD172: 0.02822456509 | AE172: 0.3350000083 | AF172: 0.3386000097 | AG172: 0
AA173: 1.709998727 | AB173: 0.3157665133 | AC173: 0.2734649479 | AD173: 0.02763529308 | AE173: 0.3350000083 | AF173: 0.3386000097 | AG173: 0
AA174: 1.719998717 | AB174: 0.3185025454 | AC174: 0.273738414 | AD174: 0.02705774643 | AE174: 0.3350000083 | AF174: 0.3386000097 | AG174: 0
AA175: 1.729998708 | AB175: 0.3212412894 | AC175: 0.2740061581 | AD175: 0.02649171837 | AE175: 0.3350000083 | AF175: 0.3386000097 | AG175: 0
AA176: 1.739998698 | AB176: 0.323982656 | AC176: 0.2742682993 | AD176: 0.02593699843 | AE176: 0.3350000083 | AF176: 0.3386000097 | AG176: 0
AA177: 1.749998689 | AB177: 0.3267266154 | AC177: 0.2745249271 | AD177: 0.0253933873 | AE177: 0.3350000083 | AF177: 0.3386000097 | AG177: 0
AA178: 1.759998679 | AB178: 0.3294731379 | AC178: 0.2747761905 | AD178: 0.0248606801 | AE178: 0.3350000083 | AF178: 0.3386000097 | AG178: 0
AA179: 1.76999867 | AB179: 0.3322221339 | AC179: 0.2750221789 | AD179: 0.02433868311 | AE179: 0.3350000083 | AF179: 0.3386000097 | AG179: 0
AA180: 1.77999866 | AB180: 0.3349735737 | AC180: 0.2752630115 | AD180: 0.02382719889 | AE180: 0.3350000083 | AF180: 0.3386000097 | AG180: 0

Sheet Sheet2
A5: FeedFlow kg/h | B5: speed rpm | C5: insert dia | D5: noof inserts | E5: m/h | F5: kg/m | G5: l m | H5: kg/h*m
A6: 80000 | B6: 10000 | C6: 9 | D6: 12 | E6: =0.5*PI()*C6*0.001*D6*B6*60 -> 101787.602 | F6: =A6/E6 -> 0.7859503363 | G6: =0.5*PI()*C6*0.001*D6 -> 0.1696460033 | H6: =A6/G6 -> 471570.2018
A8: 8000 | B8: 15000 | C8: 30 | D8: 24 | E8: =C8*0.001*D8*B8*60 -> 648000 | F8: =A8/E8 -> 0.01234567901 | G8: =C8*D8*0.001 -> 0.72 | H8: =A8/G8 -> 11111.11111
A10: 500 | B10: 30000 | C10: 4 | D10: 36 | E10: =C10*0.001*D10*B10*60 -> 259200 | F10: 0.001929012346 | G10: =C10*D10*0.001 -> 0.144 | H10: 3472.222222
A12: 10 | B12: 40000 | C12: 4 | D12: 24 | E12: 230400 | F12: 4.340277778e-05 | G12: 0.096 | H12: 104.1666667
B20: a | C20: b | D20: c | E20: d | F20: K
B21: 0.24 | C21: 0.82 | D21: 0.6 | E21: 0.24 | F21: 1.4
B22: 0.2 | C22: 0.8 | D22: 0.6 | E22: 0.2 | F22: 1.6
B23: 0.12 | C23: 0.77 | D23: 0.6 | E23: 0.12 | F23: 1.25
B24: 0.12 | C24: 0.8 | D24: 0.6 | E24: 0.12 | F24: 1.2
B28: M[kg/h] | C28: N[rpm] | D28: d[m] | E28: n[#] | F28: h[m] | G28: n*h[m] | H28: K | I28: D50
B29: 5000 | C29: 15000 | D29: 0.3 | E29: 24 | F29: 0.03 | G29: =E29*F29 -> 0.72 | H29: 1.2 | I29: =B29^B24*C29^-C24*D29^-D24*G29^-E24*F24*10^4 -> 32.58607006
B31: 10 | C31: 40000 | D31: 0.05 | E31: 24 | F31: 0.004 | G31: =E31*F31 -> 0.096 | H31: 1.4 | I31: =B31^B21*C31^-C21*D31^-D21*G31^-E21*F21*10^4 -> 43.38221719 | J31: 43.4

Sheet Sheet3
